bitfinex-derivatives/quotes_ETHF0:USTF0_20250908
["timestamp","ask_amount","ask_price","bid_price","bid_amount"]
[1757328992106,4.5005,4329.4,4329.3,3.6957]
[1757328992305,4.5005,4329.4,4329.3,4.8999]
[1757328995306,1.2506,4329.4,4329.3,4.8999]
[1757328996702,1.2506,4329.4,4329.3,4.1687]
[1757328996703,1.7189,4329.4,4329.3,4.1687]
[1757328996907,1.7189,4329.4,4329.3,4.8658]
[1757329000103,0.7413,4329.4,4329.3,4.8658]
[1757329002402,1.2012,4329.4,4329.3,4.8658]
[1757329004311,1.6695,4329.4,4329.3,4.8658]
[1757329005105,1.6695,4329.4,4329.3,4.1687]
[1757329005904,1.6695,4329.4,4329.3,4.8658]
[1757329007212,1.6695,4329.4,4329.3,5.1008]
[1757329008813,1.6695,4329.4,4329.3,4.8658]
[1757329009013,1.6695,4329.4,4329.3,5.1008]
[1757329009201,1.6695,4329.4,4329.3,4.4037]
[1757329010513,4.65838001,4329.4,4329.3,3.2078]
[1757329010714,4.4274,4329.4,4329.3,3.2078]
[1757329012418,3.6861,4329.4,4329.2,1.94028989]
[1757329012721,1.6237,4329.3,4329.2,1.94028989]
[1757329016321,1.6237,4329.3,4329.2,2.40078989]
[1757329020723,1.6237,4329.3,4329.2,3.56178989]
[1757329021622,3.9133,4329.3,4329.2,3.56178989]
[1757329023720,4.3816,4329.3,4329.2,3.56178989]
[1757329027523,4.3816,4329.3,4329.2,1.94028989]
[1757329028731,4.95386485,4329.3,4329.2,1.94028989]
[1757329030128,5.18886485,4329.3,4329.2,1.94028989]
[1757329030830,5.18886485,4329.3,4329.2,2.43008989]
[1757329031031,4.6166,4329.3,4329.2,2.43008989]
[1757329031830,5.18867593,4329.3,4329.2,2.43008989]
[1757329032032,4.6166,4329.3,4329.2,1.94028989]
[1757329032741,5.18865903,4329.3,4329.2,1.94028989]
[1757329034536,4.95365903,4329.3,4329.2,2.43008989]
[1757329034736,5.18865903,4329.3,4329.2,3.58938989]
[1757329034943,4.6166,4329.3,4329.2,3.58938989]
[1757329035535,4.6166,4329.3,4329.2,1.94028989]
[1757329036647,8.3964708,4329.3,4329.2,1.94028989]
[1757329037239,8.39654816,4329.3,4329.2,1.94028989]
[1757329042845,8.39654816,4329.3,4329.2,1.94028989]
[1757329055247,8.39654816,4329.3,4329.2,2.43008989]
[1757329058257,8.39654816,4329.3,4329.2,3.62078989]
[1757329058464,8.39654816,4329.3,4329.2,2.90148989]
[1757329058665,8.39654816,4329.3,4329.2,2.43008989]
[1757329058964,8.39654816,4329.3,4329.2,1.94028989]
[1757329059262,5.63864816,4329.3,4329.2,1.94028989]
[1757329061167,5.77008098,4329.3,4329.2,1.94028989]
[1757329061867,8.52798098,4329.3,4329.2,1.94028989]
[1757329062165,1.626,4328.7,4328.6,1.2005]
[1757329062464,1.86,4328.7,4328.6,1.6719]
[1757329066056,0.7046,4328.9,4328.6,0.9526]
[1757329066262,0.7046,4329.7,4329.1,0.7193]
[1757329066471,0.57274754,4329.6,4329.5,1.6719]
[1757329066769,1.72264754,4329.6,4329.5,1.6719]
[1757329067362,2.19874754,4329.6,4329.5,0.9526]
[1757329067559,2.19874754,4329.6,4329.5,1.6719]
[1757329068665,2.19874754,4329.6,4329.5,0.9526]
[1757329070370,2.19874754,4329.6,4329.5,1.6719]
[1757329071971,1.1499,4329.6,4329.5,1.6719]
[1757329072173,0.7046,4329.6,4329.5,1.2341]
[1757329072368,0.234,4329.7,4329.5,0.9526]
[1757329072567,0.7046,4329.6,4329.5,0.9526]
[1757329072871,0.7046,4329.6,4329.5,1.6719]
[1757329073176,1.1499,4329.6,4329.5,1.6719]
[1757329073972,0.7046,4329.6,4329.5,4.8797]
[1757329077877,1.1499,4329.6,4329.5,4.8797]
[1757329079980,0.7046,4329.6,4329.5,4.8797]
[1757329081482,0.9386,4329.8,4329.5,4.4419]
[1757329081681,0.7046,4330.2,4329.7,0.9526]
[1757329081883,0.57151884,4330.1,4330.0,1.1624]
[1757329082070,0.7046,4330.3,4330.2,0.9526]
[1757329082380,1.27605351,4330.3,4330.2,1.6719]
[1757329083278,0.7046,4330.3,4330.2,1.6719]
[1757329083874,1.1499,4330.3,4330.2,1.6719]
[1757329087983,1.6211,4330.3,4330.2,1.6719]
[1757329089381,1.1499,4330.3,4330.2,1.6719]
[1757329090080,0.234,4330.6,4330.2,1.6719]
[1757329090282,0.8923,4330.6,4330.5,0.9562]
[1757329090584,0.6583,4330.6,4330.5,1.6466]
[1757329090883,3.8661,4330.8,4330.5,1.1791]
[1757329091082,3.8661,4330.8,4330.7,0.9562]
[1757329091281,6.624,4330.8,4330.7,1.6466]
[1757329091875,0.234,4331.1,4330.7,1.6466]
[1757329092078,3.4162,4330.9,4330.8,1.6466]
[1757329092881,0.8923,4331.1,4330.8,0.9562]
[1757329093077,0.6583,4331.1,4331.0,0.9562]
[1757329093282,1.0978,4331.1,4331.0,1.6466]
[1757329096790,0.6583,4331.2,4331.1,1.6466]
[1757329097085,3.2078,4331.8,4331.3,0.6904]
[1757329097287,3.2078,4331.8,4331.7,1.6466]
[1757329097288,4.7768,4331.8,4331.7,1.6466]
[1757329097587,4.7768,4331.8,4331.7,0.9562]
[1757329098182,4.7768,4331.8,4331.0,0.1306]
[1757329098384,3.9404,4331.5,4331.4,0.4777]
[1757329098589,4.5987,4331.5,4331.4,1.6466]
[1757329098784,3.8557,4331.5,4331.4,1.6466]
[1757329099376,3.4162,4331.5,4331.4,1.6466]
[1757329099590,0.6583,4331.9,4331.4,4.164]
[1757329099783,3.4162,4331.7,4331.6,0.9562]
[1757329099982,3.4162,4331.7,4331.6,1.6466]
[1757329100380,3.8557,4331.7,4331.6,1.6466]
[1757329100987,4.3269,4331.7,4331.6,1.6466]
[1757329104393,4.3269,4331.7,4331.6,0.9562]
[1757329105398,0.2676,4332.0,4331.7,1.1681]
[1757329105596,1.569,4331.8,4331.7,1.6466]
[1757329108692,1.8408,4331.5,4331.4,3.6855]
[1757329108995,1.8408,4331.5,4331.4,3.9195]
[1757329109789,1.8408,4331.5,4331.4,3.2078]
[1757329109993,1.8408,4331.5,4331.3,0.0034644]
[1757329109994,4.8327,4331.5,4331.3,0.0034644]
[1757329115199,2.7579,4331.4,4331.3,0.0034644]
[1757329115401,0.8951,4330.4,4330.3,3.9126]
[1757329115693,1.5733,4330.4,4330.3,5.2522]
[1757329116297,1.1251,4330.4,4330.3,5.2522]
[1757329116693,0.6782,4330.9,4330.4,0.6621]
[1757329116899,0.6782,4330.9,4330.8,1.5795]
[1757329118805,0.6782,4331.3,4330.8,0.9174]
[1757329119000,2.7579,4331.1,4331.0,1.5795]
[1757329119298,0.4469,4331.2,4331.1,1.5795]
[1757329119490,0.6782,4331.4,4331.3,0.9174]
[1757329119696,0.6782,4331.4,4331.3,1.5795]
[1757329119895,0.272,4332.5,4331.4,0.6621]
[1757329119896,0.234,4332.3,4331.4,0.6621]
[1757329120100,4.3312,4331.7,4331.6,0.4708]
[1757329122398,4.3312,4331.7,4331.3,0.8961]
[1757329122600,1.8453,4331.5,4331.4,0.4708]
[1757329126014,1.5733,4331.4,4331.3,0.234]
[1757329126602,1.5733,4331.3,4331.2,0.7048]
[1757329127806,1.5733,4331.3,4331.2,0.4708]
[1757329128108,1.5733,4331.3,4331.2,0.7048]
[1757329128908,1.5733,4331.3,4331.2,1.1514]
[1757329129111,1.5733,4331.3,4331.2,1.8135]
[1757329131514,1.5733,4331.3,4331.2,1.1514]
[1757329132617,1.5733,4331.3,4331.2,0.7048]
[1757329133117,4.3312,4331.3,4331.2,0.234]
[1757329133411,4.3312,4331.3,4331.1,3.2078]
[1757329133617,3.653,4331.3,4331.2,0.234]
[1757329134317,4.3312,4331.3,4331.2,0.234]
[1757329135316,1.5733,4331.2,4331.1,3.2078]
[1757329135619,1.5733,4331.2,4331.1,0.234]
[1757329135820,2.14483071,4331.2,4331.1,0.234]
[1757329138719,1.5733,4331.2,4331.1,0.234]
[1757329139222,1.5733,4331.2,4330.9,3.2078]
[1757329139524,1.8453,4331.0,4330.9,3.2078]
[1757329139718,4.6032,4331.0,4330.9,3.2078]
[1757329140418,1.8453,4330.5,4330.4,3.6786]
[1757329140616,1.8453,4330.5,4330.4,4.3592]
[1757329140824,1.8453,4330.5,4330.4,5.0213]
[1757329142224,1.1251,4330.5,4330.4,5.0213]
[1757329142426,0.6782,4330.5,4330.4,4.7873]
[1757329142624,0.6782,4330.5,4330.4,5.0213]
[1757329144530,0.272,4331.0,4330.5,0.885]
[1757329144822,3.4361,4330.6,4330.5,1.8024]
[1757329145023,3.4361,4330.9,4330.5,1.3743]
[1757329145220,0.7189,4331.0,4330.9,1.5795]
[1757329145421,1.1893,4331.0,4330.9,1.8135]
[1757329145621,1.8722,4331.0,4330.9,1.8135]
[1757329146827,0.6829,4331.0,4330.9,5.0213]
[1757329147532,1.1501,4331.0,4330.9,5.0213]
[1757329148233,1.4121,4331.0,4330.9,5.0213]
[1757329148831,1.8825,4331.0,4330.9,5.0213]
[1757329152830,1.4121,4331.0,4330.9,5.0213]
[1757329153027,0.6829,4331.0,4330.9,5.0213]
[1757329154023,1.1501,4331.0,4330.9,5.0213]
[1757329154629,4.6404,4331.0,4330.9,3.6786]
[1757329154934,4.6404,4331.0,4330.9,3.9126]
[1757329157131,4.6404,4331.0,4330.9,3.4418]
[1757329157333,4.6404,4331.0,4330.9,0.234]
[1757329158339,0.6829,4330.9,4330.8,0.234]
[1757329158631,1.6205,4330.9,4330.8,0.234]
[1757329158836,4.3784,4330.9,4330.8,0.6666]
[1757329163042,4.3784,4330.9,4330.8,0.234]
[1757329165640,4.3784,4330.9,4330.8,0.6666]
[1757329166342,4.3784,4330.9,4330.8,0.234]
[1757329166637,4.3784,4330.9,4330.4,3.2078]
[1757329166943,1.8825,4330.5,4330.4,3.2078]
[1757329167142,1.8825,4330.5,4330.4,3.4418]
[1757329168645,4.6404,4330.5,4330.4,3.4418]
[1757329168843,4.6404,4330.5,4330.4,3.8744]
[1757329169144,4.6404,4330.5,4330.4,4.9685]
[1757329169943,1.1501,4330.5,4330.4,4.9685]
[1757329170746,0.6829,4330.5,4330.4,4.9685]
[1757329171847,1.1501,4330.5,4330.4,4.9685]
[1757329176649,1.8498,4330.5,4330.4,4.3097]
[1757329179053,4.6077,4330.5,4330.4,3.8744]
[1757329179254,1.8498,4330.5,4330.4,3.8744]
[1757329180754,1.8498,4330.5,4330.4,4.3014]
[1757329180957,1.8498,4330.5,4330.4,4.9235]
[1757329181846,1.8498,4330.5,4330.4,4.3014]
[1757329182151,4.6077,4330.5,4330.4,3.8744]
[1757329183048,4.6077,4330.5,4330.4,4.3014]
[1757329185661,4.6077,4330.5,4330.4,3.8744]
[1757329185857,4.6077,4330.5,4330.4,3.4418]
[1757329186958,4.6077,4330.5,4330.4,3.8611]
[1757329187858,4.6077,4330.5,4330.4,4.2881]
[1757329188962,4.6077,4330.5,4330.4,4.9102]
[1757329192568,4.6077,4330.5,4330.4,4.2881]
[1757329199871,4.6077,4330.5,4330.4,4.9102]
[1757329200074,3.908,4330.5,4330.4,4.9102]
[1757329200969,1.1501,4330.5,4330.4,4.9102]
[1757329201270,1.1383,4331.0,4330.9,0.4193]
[1757329201574,1.7108688,4331.0,4330.9,0.6533]
[1757329201776,5.0889688,4331.0,4330.9,0.6533]
[1757329203773,0.6202,4331.0,4330.9,4.9102]
[1757329203974,3.4452644,4331.8,4330.9,4.9102]
[1757329204177,1.0589,4331.3,4331.2,1.4684]
[1757329204475,1.0589,4331.3,4331.2,1.7024]
[1757329205082,0.6202,4331.3,4331.2,1.7024]
[1757329205284,1.4999644,4331.8,4331.7,0.8463]
[1757329205484,4.2578644,4331.8,4331.7,1.4671]
[1757329205682,4.2578644,4331.8,4331.7,0.8463]
[1757329207186,4.2578644,4331.8,4331.7,1.4671]
[1757329209187,4.2578644,4331.8,4331.7,0.8463]
[1757329209690,4.2578644,4331.8,4331.7,0.4193]
[1757329209880,4.2578644,4331.8,4331.6,0.234]
[1757329210082,1.1387,4331.5,4331.4,3.2078]
[1757329210386,0.8711,4330.2,4330.1,3.2078]
[1757329210590,0.8711,4330.2,4329.5,3.2078]
[1757329210888,0.8711,4329.7,4329.6,0.6492]
[1757329211182,0.6402,4329.6,4329.5,3.2078]
[1757329211385,1.5113,4329.6,4329.5,3.4408]
[1757329211583,1.5113,4329.6,4329.5,0.233]
[1757329211979,0.4351,4329.1,4329.0,1.4664]
[1757329212182,1.0753,4329.1,4329.0,1.6994]
[1757329213387,1.5113,4329.1,4329.0,1.6994]
[1757329214088,1.5113,4329.1,4329.0,1.0786]
[1757329214485,1.5113,4329.1,4329.0,1.6994]
[1757329215496,1.0753,4329.1,4329.0,1.6994]
[1757329215888,0.6402,4329.1,4329.0,1.6994]
[1757329216089,1.3463644,4329.5,4329.4,1.4664]
[1757329216293,1.7823644,4329.5,4329.4,1.6994]
[1757329216593,1.7823644,4329.5,4329.4,1.0786]
[1757329216992,1.0787644,4329.5,4329.4,1.6994]
[1757329217191,1.3463644,4329.5,4329.4,1.6994]
[1757329217392,1.7823644,4329.5,4329.4,1.6994]
[1757329220394,1.7823644,4329.5,4329.4,0.233]
[1757329220593,0.2676,4329.0,4328.9,3.624]
[1757329220901,1.7789,4329.0,4328.9,3.2078]
[1757329221094,1.7789,4329.0,4328.9,0.233]
[1757329221298,0.2676,4329.0,4328.5,33.263]
[1757329221596,0.9078,4328.5,4328.3,3.2078]
[1757329221900,1.5113,4328.4,4328.3,3.2078]
[1757329222400,1.5113,4327.7,4327.6,3.2078]
[1757329222592,1.5113,4327.7,4327.6,3.857]
[1757329223103,1.5113,4327.7,4327.6,4.2864]
[1757329224103,1.5113,4327.7,4327.6,4.9072]
[1757329224303,1.5113,4327.7,4327.6,4.2864]
[1757329225304,1.5113,4327.7,4327.6,4.0534]
[1757329225503,1.5113,4327.7,4327.6,4.2874]
[1757329226297,1.5113,4327.7,4327.6,4.9082]
[1757329226697,1.5113,4327.7,4327.6,3.2078]
[1757329226999,1.5113,4327.7,4327.6,3.4418]
[1757329227298,1.5113,4327.7,4327.6,3.858]
[1757329227499,1.5113,4327.7,4327.6,4.2874]
[1757329227908,1.0753,4327.7,4327.6,4.9082]
[1757329228602,1.5113,4327.7,4327.6,4.2874]
[1757329228803,1.5113,4327.7,4327.6,4.9082]
[1757329231006,1.5113,4327.7,4327.6,4.2874]
[1757329231206,1.5113,4327.7,4327.6,3.4418]
[1757329232310,1.5113,4327.7,4327.6,4.9082]
[1757329233009,1.5113,4327.7,4327.6,4.2874]
[1757329235606,1.5113,4327.7,4327.6,3.4418]
[1757329236809,1.5113,4327.7,4327.6,3.2078]
[1757329237308,1.5113,4327.7,4327.1,33.27]
[1757329237309,1.4717,4327.2,4327.1,3.2078]
[1757329237508,1.4717,4327.2,4327.1,3.4418]
[1757329238115,1.4717,4327.2,4327.1,3.8629]
[1757329238615,1.4717,4327.2,4327.1,4.2959]
[1757329238811,1.4717,4327.2,4327.1,4.936]
[1757329239616,1.0635,4327.2,4327.1,4.936]
[1757329239915,0.6372,4327.5,4327.2,0.6401]
[1757329240108,1.7265,4327.5,4327.4,0.8541]
[1757329240309,1.7265,4327.5,4327.4,1.0881]
[1757329242406,1.7265,4327.5,4327.4,0.8541]
[1757329242612,1.7265,4327.5,4327.4,1.0881]
[1757329242910,1.7265,4327.5,4327.4,1.7282]
[1757329243111,0.4263,4327.9,4327.5,0.6401]
[1757329243307,1.0635,4327.8,4327.7,1.4942]
[1757329244612,1.4717,4327.8,4327.7,1.4942]
[1757329248916,1.4717,4327.8,4327.7,0.8541]
[1757329249910,1.4717,4327.8,4327.7,1.0881]
[1757329251220,1.4717,4327.7,4327.6,0.234]
[1757329252222,1.4717,4327.7,4327.6,1.7282]
[1757329254225,1.0635,4327.7,4327.6,1.7282]
[1757329254412,0.6372,4327.9,4327.6,1.0881]
[1757329254617,0.6372,4328.4,4327.8,0.6401]
[1757329254816,0.6372,4328.4,4328.3,0.8541]
[1757329254817,1.4717,4328.4,4328.3,0.8541]
[1757329255021,2.04377827,4328.4,4328.3,1.4942]
[1757329255624,1.4717,4328.4,4328.3,1.4942]
[1757329256723,1.0635,4328.4,4328.3,1.4942]
[1757329257114,0.6372,4328.4,4328.3,1.4942]
[1757329258619,0.6372,4328.8,4328.3,0.8541]
[1757329258819,4.6795,4328.9,4328.8,0.4211]
[1757329259719,4.6795,4328.9,4328.4,0.6401]
[1757329259931,1.3183,4328.5,4328.4,1.4942]
[1757329260226,1.7265,4328.5,4328.4,1.4942]
[1757329260526,1.0635,4328.5,4328.4,1.4942]
[1757329261033,1.7265,4328.5,4328.4,1.4942]
[1757329261327,1.7265,4328.5,4328.4,0.8541]
[1757329261518,1.7265,4328.5,4327.7,3.8479]
[1757329261716,1.4717,4327.9,4327.8,0.6541]
[1757329261919,1.4717,4327.9,4327.8,1.0871]
[1757329262129,1.4717,4327.9,4327.8,1.7272]
[1757329265533,1.4717,4327.9,4327.8,1.0871]
[1757329265929,0.8345,4327.9,4327.8,0.233]
[1757329266636,1.4926,4327.9,4327.8,0.233]
[1757329267230,1.4926,4327.9,4327.8,0.6372]
[1757329267837,1.4926,4327.9,4327.8,1.5028]
[1757329268028,1.4926,4327.9,4327.8,1.7358]
[1757329268542,1.0844,4327.9,4327.8,1.7358]
[1757329270136,1.5002,4327.9,4327.8,1.7358]
[1757329270536,1.5002,4327.9,4327.8,1.0753]
[1757329271328,1.5002,4327.9,4327.8,0.233]
[1757329271823,1.5002,4327.9,4327.8,1.0753]
[1757329272334,1.5002,4327.9,4327.8,1.7358]
[1757329273833,0.6581,4327.9,4327.8,1.7358]
[1757329274135,1.4881,4328.4,4328.3,1.5028]
[1757329274340,1.4881,4328.4,4328.3,1.7358]
[1757329276134,1.4881,4328.4,4328.3,1.0753]
[1757329276334,1.4881,4328.4,4328.3,0.6372]
[1757329276530,0.83,4327.8,4327.7,3.2078]
[1757329276735,1.4881,4327.8,4327.7,3.4408]
[1757329276933,1.4881,4327.8,4327.7,3.845]
[1757329279339,1.4881,4327.8,4327.7,3.612]
[1757329279540,1.4881,4327.8,4327.7,3.845]
[1757329279942,1.4881,4327.8,4327.7,3.612]
[1757329280238,1.4881,4327.8,4327.7,4.7106]
[1757329280446,1.0723,4327.8,4327.7,4.9436]
[1757329281838,0.6581,4327.8,4327.7,4.9436]
[1757329283744,1.0723,4327.8,4327.7,4.9436]
[1757329285845,0.6581,4327.8,4327.7,4.9436]
[1757329287236,0.2592,4328.0,4327.7,4.9436]
[1757329287441,0.6581,4327.9,4327.7,4.2831]
[1757329287646,0.6581,4328.4,4327.8,0.8423]
[1757329287947,1.0723,4328.4,4328.3,1.5028]
[1757329288249,1.0723,4328.4,4328.3,1.7358]
[1757329288548,1.4881,4328.4,4328.3,1.7358]
[1757329289047,1.4881,4328.4,4328.3,1.0753]
[1757329292050,1.4881,4328.4,4328.3,0.6372]
[1757329292246,1.4881,4328.4,4328.3,0.233]
[1757329292651,0.2592,4328.0,4327.7,3.2078]
[1757329292950,1.4881,4327.8,4327.7,3.612]
[1757329293144,1.4881,4327.8,4327.7,4.7106]
[1757329293648,1.4881,4327.8,4327.7,4.9436]
[1757329294245,1.4881,4327.8,4327.7,4.2831]
[1757329294851,1.4881,4327.8,4327.7,4.0501]
[1757329295155,1.4881,4327.8,4327.7,4.2831]
[1757329295652,1.4881,4327.8,4327.7,4.0501]
[1757329295855,1.4881,4327.8,4327.7,4.2831]
[1757329296154,1.4881,4327.8,4327.7,3.845]
[1757329296647,1.4881,4327.8,4327.7,3.4408]
[1757329297052,1.4881,4327.8,4327.7,3.2078]
[1757329297248,0.2463,4327.5,4327.2,3.2078]
[1757329297453,1.6352,4327.5,4327.4,0.4168]
[1757329298052,1.6352,4327.5,4327.4,0.6498]
[1757329298252,1.0489,4327.5,4327.4,0.233]
[1757329298856,1.6352,4327.5,4327.4,0.233]
[1757329299761,0.5863,4327.4,4327.2,3.2078]
[1757329299963,0.8026,4327.4,4327.2,3.2078]
[1757329300158,1.3889,4327.3,4327.2,3.2078]
[1757329300365,1.3889,4327.3,4327.2,3.4408]
[1757329300666,1.3889,4327.3,4327.2,3.8576]
[1757329300858,1.3889,4327.3,4327.2,4.2689]
[1757329302855,0.5863,4327.4,4327.3,0.618]
[1757329303067,0.9971,4327.4,4327.3,1.4461]
[1757329303267,1.3889,4327.4,4327.3,1.4461]
[1757329303761,0.9971,4327.4,4327.3,1.4461]
[1757329303963,0.5863,4327.4,4327.3,1.4461]
[1757329304164,3.2078,4327.9,4327.3,1.4461]
[1757329304360,0.9971,4327.8,4327.7,1.4461]
[1757329304567,1.3889,4327.8,4327.7,1.0611]
[1757329305666,1.3889,4327.8,4327.7,0.6498]
[1757329307872,1.3889,4327.8,4327.7,1.6791]
[1757329308268,0.9971,4327.8,4327.7,1.6791]
[1757329309670,1.3889,4327.8,4327.7,1.0611]
[1757329310069,1.3889,4327.8,4327.7,1.6791]
[1757329312972,0.5863,4327.8,4327.7,1.6791]
[1757329313173,0.5863,4327.9,4327.8,1.4461]
[1757329313475,0.9971,4327.9,4327.8,1.4461]
[1757329315275,1.3889,4327.9,4327.8,1.4461]
[1757329316674,1.3889,4327.9,4327.8,0.4168]
[1757329316978,1.3889,4327.9,4327.8,1.0611]
[1757329317470,1.3889,4327.9,4327.8,1.6791]
[1757329317671,3.2078,4328.4,4327.9,0.618]
[1757329317872,4.5967,4328.4,4328.3,0.8281]
[1757329318178,4.5967,4328.4,4328.3,0.4168]
[1757329318379,0.6571,4328.0,4327.9,1.4461]
[1757329318578,1.2434,4328.0,4327.9,1.4461]
[1757329319281,1.6352,4328.0,4327.9,0.8281]
[1757329319476,1.6352,4328.0,4327.9,1.4461]
[1757329320677,0.9971,4328.0,4327.9,1.4461]
[1757329321472,1.6352,4328.0,4327.9,1.4461]
[1757329321672,1.6352,4328.0,4327.9,0.8281]
[1757329321873,1.6352,4328.0,4327.9,0.4168]
[1757329322180,1.6352,4328.0,4327.8,0.233]
[1757329322578,0.2463,4327.5,4327.3,3.8258]
[1757329322782,1.6352,4327.5,4327.4,1.91017]
[1757329323079,0.9971,4327.5,4327.4,1.91017]
[1757329323274,0.9971,4327.5,4327.4,1.6791]
[1757329323474,1.6352,4327.5,4327.4,0.6498]
[1757329324279,1.6352,4327.5,4327.4,1.0611]
[1757329324485,1.6352,4327.5,4327.4,0.8281]
[1757329324786,1.6352,4327.5,4327.4,0.6498]
[1757329324972,1.6352,4327.5,4327.4,0.4168]
[1757329325281,1.6352,4327.5,4327.4,0.6498]
[1757329326171,1.6352,4327.5,4327.3,3.2078]
[1757329326372,1.4399,4327.4,4327.3,3.2078]
[1757329326578,1.4399,4327.4,4327.3,3.4408]
[1757329327380,1.4399,4327.4,4327.3,3.2078]
[1757329327580,1.4399,4327.4,4327.3,3.4408]
[1757329329790,1.4399,4327.4,4327.3,3.847]
[1757329329985,1.4399,4327.4,4327.3,3.4408]
[1757329331685,1.4399,4327.4,4327.3,3.2078]
[1757329331983,1.4399,4326.9,4326.8,3.2078]
[1757329332792,1.4399,4326.4,4326.3,3.2078]
[1757329332985,1.4399,4326.4,4326.3,3.4408]
[1757329333187,1.4399,4326.4,4326.3,3.614]
[1757329333379,1.4399,4326.4,4326.3,3.847]
[1757329334185,1.4399,4326.4,4326.3,3.614]
[1757329334381,1.4399,4326.4,4326.3,3.847]
[1757329334586,1.4399,4326.4,4326.3,3.614]
[1757329334787,1.4399,4326.4,4326.3,3.847]
[1757329334984,1.4399,4326.4,4326.3,3.614]
[1757329335188,1.4399,4326.4,4326.3,3.847]
[1757329335896,1.4399,4325.9,4325.8,3.2078]
[1757329336090,1.4399,4325.9,4325.7,0.233]
[1757329336388,1.4399,4325.4,4325.3,3.2078]
[1757329336591,1.4399,4325.4,4325.3,3.4408]
[1757329337789,1.4399,4325.4,4325.3,3.847]
[1757329338690,1.4399,4325.4,4325.3,4.2418]
[1757329338995,1.4399,4325.4,4325.3,4.8318]
[1757329339790,1.4399,4325.4,4325.3,4.5988]
[1757329339990,1.4399,4325.4,4325.3,4.2418]
[1757329340187,1.6855,4325.0,4324.9,0.4062]
[1757329340386,1.6855,4325.0,4324.9,0.6392]
[1757329341496,1.6855,4325.0,4324.9,0.233]
[1757329342098,1.6855,4325.0,4324.9,0.6392]
[1757329343801,1.6855,4325.0,4324.8,3.2078]
[1757329343991,1.075,4325.0,4324.9,1.034]
[1757329344197,0.2456,4325.5,4325.0,0.59]
[1757329344396,1.6855,4325.5,4325.4,0.801]
[1757329346390,1.6855,4325.5,4325.1,0.233]
[1757329348302,1.6855,4325.5,4324.8,3.2078]
[1757329348303,1.075,4325.0,4324.8,3.2078]
[1757329348503,1.4399,4324.9,4324.8,3.2078]
[1757329348700,1.4399,4324.9,4324.8,3.614]
[1757329349100,1.4399,4324.9,4324.8,4.0088]
[1757329349305,1.4399,4325.4,4325.3,0.4062]
[1757329349503,1.4399,4325.4,4325.3,0.801]
[1757329349698,1.4399,4325.4,4325.3,1.391]
[1757329350105,1.4399,4325.4,4325.3,0.801]
[1757329352908,1.5554,4325.4,4325.3,0.801]
[1757329353212,1.5554,4325.4,4325.3,0.4062]
[1757329353406,0.6105,4325.3,4325.2,0.4062]
[1757329353603,1.4399,4325.3,4325.2,0.4062]
[1757329354503,1.4399,4325.3,4324.8,4.0308]
[1757329354709,1.075,4325.0,4324.9,0.4062]
[1757329354902,1.6855,4325.0,4324.9,0.801]
[1757329355096,1.6855,4325.0,4324.9,1.391]
[1757329355301,0.6105,4325.3,4325.0,0.59]
[1757329355498,0.6105,4325.3,4325.2,1.3695]
[1757329356609,1.0265,4325.3,4325.2,1.3695]
[1757329358205,0.1155,4325.4,4325.2,1.0007]
[1757329358509,0.1155,4325.4,4325.3,1.6007]
[1757329358810,0.1155,4325.4,4325.3,4.5773]
[1757329359199,0.1155,4325.4,4325.3,8.5773]
[1757329359404,0.5696,4326.1,4326.0,0.7695]
[1757329359604,3.2078,4326.8,4326.3,0.7695]
[1757329359605,0.9856,4326.4,4326.3,0.7695]
[1757329359810,0.9856,4326.4,4326.3,1.5406]
[1757329360600,1.4025,4326.4,4326.3,1.0025]
[1757329361006,1.4025,4326.4,4326.3,0.6127]
[1757329363912,0.5696,4326.4,4326.3,1.5406]
[1757329364110,0.9856,4326.4,4326.3,1.5406]
[1757329364806,1.4025,4326.4,4326.3,1.0025]
[1757329366609,1.4025,4326.4,4326.3,0.6127]
[1757329366915,1.4025,4326.4,4326.3,0.233]
[1757329367414,1.4025,4326.4,4326.3,0.6127]
[1757329368306,0.8329,4326.1,4326.0,3.2078]
[1757329368514,1.4025,4325.3,4325.2,3.2078]
[1757329368713,1.4025,4324.9,4324.8,0.233]
[1757329368905,0.5696,4324.8,4324.7,3.2078]
[1757329369105,1.4025,4324.8,4324.7,3.4408]
[1757329369705,1.4025,4324.8,4324.7,3.2078]
[1757329369914,1.4025,4324.8,4324.7,3.4408]
[1757329371411,1.4025,4324.8,4324.7,3.2078]
[1757329374112,1.4025,4324.8,4324.2,3.2078]
[1757329374113,0.8329,4324.8,4324.2,3.2078]
[1757329374311,1.4025,4324.4,4324.3,0.233]
[1757329374513,0.8329,4324.4,4324.2,3.2078]
[1757329374713,0.234,4324.5,4324.2,3.4408]
[1757329374714,1.4025,4324.3,4324.2,3.4408]
[1757329375017,1.4025,4324.3,4324.2,4.2103]
[1757329375412,1.4025,4324.3,4324.2,4.7484]
[1757329376518,0.5696,4324.3,4324.2,4.7484]
[1757329377112,0.234,4324.5,4324.2,4.7484]
[1757329377316,1.4025,4324.3,4324.2,3.5875]
[1757329377513,1.4025,4324.3,4323.8,0.5381]
[1757329377815,1.6365,4324.0,4323.9,0.6127]
[1757329378219,1.6365,4324.0,4323.9,1.0025]
[1757329379916,1.4025,4323.9,4323.8,0.3797]